[Event "41st Amateur D7"]
[Site "ChessGUI4"]
[Date "2013.07.09"]
[Round "24.5"]
[White "Waxman 2011"]
[Black "Gibbon 2.57a 64-bit"]
[Result "0-1"]
[BlackElo "2251"]
[ECO "D45"]
[EventDate "2013.??.??"]
[TimeControl "40/1500:40/1500:40/1500"]
[WhiteElo "2256"]

{ i5 Quad } 1.c4 { [%eval 0,1] [%emt 0:00:00] } 1...c6
{ [%eval 0,1] [%emt 0:00:00] } 2.Nf3 { [%eval 0,1] [%emt 0:00:00] } 2...d5
{ [%eval 0,1] [%emt 0:00:00] } 3.e3 { [%eval 0,1] [%emt 0:00:00] } 3...Nf6
{ [%eval 0,1] [%emt 0:00:00] } 4.Nc3 { [%eval 0, 1] [%emt 0:00:00] } 4...e6
{ [%eval 0,1] [%emt 0:00:00] } 5.d4 { [%eval 0,1] [%emt 0: 00:00] } 5...Nbd7
{ [%eval 0,1] [%emt 0:00:00] } 6.Qc2 { [%eval 0,1] [%emt 0:00:00] } 6...Bd6
{ [%eval 0,1] [%emt 0:00:00] } 7.Bd2 { [%eval 0,1] [%emt 0:00:00] } 7...O-O
{ [%eval 0,1] [%emt 0:00:00] } 8.h3 { [%eval 0,1] [%emt 0:00:00] } 8...c5
{ [%eval 0,1] [%emt 0:00:00] } 9.O-O-O { [%eval 12,11] [%emt 0:00:31] }
9...cxd4 { [%eval 14,13] [%emt 0:01:49] (Re8) } 10.Nxd4
{ [%eval 9,12] [%emt 0:01:12] (Nxd4) } 10...dxc4
{ [%eval 41,14] [%emt 0:01:19] (Ne5) } 11.Bxc4
{ [%eval 21,12] [%emt 0:00:49] (Be1) } 11...Ne5
{ [%eval 52,13] [%emt 0:00:30] (Nb6) } 12.Be2
{ [%eval 0,12] [%emt 0: 00:55] (Ncb5) } 12...Bd7
{ [%eval 45,13] [%emt 0:01:29] (Bd7) } 13.e4
{ [%eval 12,11] [%emt 0:00:37] (e4) } 13...Ng6
{ [%eval 50,12] [%emt 0:00:28] (Bc5) } 14.Bg5
{ [%eval -3,11] [%emt 0:00:41] (Kb1) } 14...Bf4+
{ [%eval 65,12] [%emt 0:00:28] (Rc8) } 15.Bxf4
{ [%eval -12,12] [%emt 0:00:25] (Bxf4) } 15...Nxf4
{ [%eval 63,13] [%emt 0:00:26] (Nxf4) } 16.Bf3
{ [%eval -17,12] [%emt 0:00:43] (Bf3) } 16...Qc7
{ [%eval 62,13] [%emt 0:01:03] (Rc8) } 17.g3
{ [%eval -3,12] [%emt 0:00:41] (Ndb5) } 17...Ng6
{ [%eval 63,13] [%emt 0:00:28] (Ng6) } 18.h4
{ [%eval -12,12] [%emt 0:00:41] (Kb1) } 18...Ne5
{ [%eval 88,12] [%emt 0:00:19] (Ne5) } 19.Be2
{ [%eval -35,12] [%emt 0:00:54] (Kb1) } 19...Rac8
{ [%eval 83,12] [%emt 0:00:20] (Rac8) } 20.f4
{ [%eval -46,12] [%emt 0:00:43] (Rd2) } 20...Nc4
{ [%eval 86,12] [%emt 0:00:17] (Nc4) } 21.Bxc4
{ [%eval -51, 12] [%emt 0:00:39] (Bxc4) } 21...Qxc4
{ [%eval 76,12] [%emt 0:00:06] (Qxc4) } 22.Kb1
{ [%eval -53,12] [%emt 0:00:38] (Kb1) } 22...Rfd8
{ [%eval 75,12] [%emt 0:00:23] (Rfd8) } 23.Rhe1
{ [%eval -61,12] [%emt 0:00:38] (Rhe1) } 23...Qc5
{ [%eval 65,12] [%emt 0:00: 42] (b5) } 24.Nb3
{ [%eval -34,12] [%emt 0:00:40] (e5) } 24...Qc7
{ [%eval 76,12] [%emt 0:00:16] (Qb6) } 25.Qe2
{ [%eval -44,12] [%emt 0:00:35] (Qf2) } 25...Bc6
{ [%eval 68,12] [%emt 0:00:18] (e5) } 26.Nd4
{ [%eval -7,13] [%emt 0:01:06] (Nd4) } 26...Be8
{ [%eval 45,12] [%emt 0:00:17] (Be8) } 27.Nf3
{ [%eval -12,13] [%emt 0:00:52] (Rd3) } 27...b5
{ [%eval 43,12] [%emt 0:00:24] (Rxd1) } 28.a3
{ [%eval -17,12] [%emt 0: 00:40] (Rxd8) } 28...Qb7
{ [%eval 50,12] [%emt 0:00:24] (Qb7) } 29.Rxd8
{ [%eval -26, 13] [%emt 0:00:43] (e5) } 29...Rxd8
{ [%eval 64,12] [%emt 0:00:04] (Rxd8) } 30.e5
{ [%eval -30,12] [%emt 0:00:37] (Ka1) } 30...Nh5
{ [%eval 78,13] [%emt 0:00:14] (Nd5) } 31.Ne4
{ [%eval -15,12] [%emt 0:00:38] (Ne4) } 31...b4
{ [%eval 84,13] [%emt 0:00:18] (b4) } 32.Qe3
{ [%eval -38,12] [%emt 0:00:44] (Qe3) } 32...bxa3
{ [%eval 90,12] [%emt 0:00:18] (Qa6) } 33.Qxa3
{ [%eval -7,11] [%emt 0:00:17] (Qxa3) } 33...Qd5
{ [%eval 84, 12] [%emt 0:00:11] (Qd5) } 34.Nfg5
{ [%eval -35,12] [%emt 0:00:51] (Nfg5) } 34...h6
{ [%eval 70,11] [%emt 0:00:11] (h6) } 35.Nh3
{ [%eval -46,12] [%emt 0:00:47] (Nh3) } 35...Rb8
{ [%eval 81,11] [%emt 0:00:18] (f5) } 36.Nhf2
{ [%eval -19,12] [%emt 0:00: 52] (Nhf2) } 36...Rb3
{ [%eval 93,13] [%emt 0:00:17] (Rb3) } 37.Qe7
{ [%eval -58,12] [%emt 0:00:50] (Qxa7) } 37...Qb5
{ [%eval 96,10] [%emt 0:00:10] (Qb5) } 38.Nd1
{ [%eval -140,12] [%emt 0:00:39] (Nd1) } 38...Qd3+
{ [%eval 144,11] [%emt 0:00:09] (Qd3) } 39.Ka1
{ [%eval -172,12] [%emt 0:00:39] (Ka1) } 39...Bc6
{ [%eval 156,13] [%emt 0: 00:31] (Bc6) } 40.Nc5
{ [%eval -180,12] [%emt 0:00:24] (Nc5) } 40...Qd2
{ [%eval 176, 13] [%emt 0:00:17] (Qd2) } 41.Nxb3
{ [%eval -221,14] [%emt 0:01:10] (Nxb3) } 41...Qxe1
{ [%eval 270,14] [%emt 0:00:09] (Qxe1) } 42.Qd8+
{ [%eval -222,14] [%emt 0:00:41] (Qd8) } 42...Kh7
{ [%eval 233,16] [%emt 0:00:55] (Kh7) } 43.Ka2
{ [%eval -246,14] [%emt 0:00:28] (Ka2) } 43...Qxg3
{ [%eval 245,15] [%emt 0:00:57] (Qxg3) } 44.Qc7
{ [%eval -232,14] [%emt 0:00:56] (Qc7) } 44...Bd5
{ [%eval 254,15] [%emt 0:00:37] (Be4) } 45.Nc3
{ [%eval -229,14] [%emt 0:00:28] (Nc3) } 45...Qxf4
{ [%eval 266,15] [%emt 0:00: 33] (Qxf4) } 46.Qxa7
{ [%eval -230,14] [%emt 0:00:26] (Qxa7) } 46...Bxb3+
{ [%eval 266, 15] [%emt 0:00:54] (Bxb3) } 47.Kxb3
{ [%eval -232,12] [%emt 0:00:07] (Kxb3) } 47...Kg6
{ [%eval 228,15] [%emt 0:01:19] (Ng3) } 48.Qg1+
{ [%eval -230,13] [%emt 0:00:33] (Qg1) } 48...Kf5
{ [%eval 225,12] [%emt 0:00:28] (Kf5) } 49.Qa7
{ [%eval -226,14] [%emt 0:00:41] (Qa7) } 49...Kg4
{ [%eval 234,14] [%emt 0:00:29] (Kg4) } 50.Qe7
{ [%eval -230,14] [%emt 0:00:37] (Ka2) } 50...Qxe5
{ [%eval 246,14] [%emt 0:00:25] (Qf5) } 51.Qxf7
{ [%eval -224,12] [%emt 0:00:09] (Qxf7) } 51...Kxh4
{ [%eval 246,13] [%emt 0:00:33] (Kxh4) } 52.Qf3
{ [%eval -228,12] [%emt 0:00:40] (Qf1) } 52...Ng3
{ [%eval 237,12] [%emt 0:00:34] (Kg5) } 53.Qf2
{ [%eval -225,12] [%emt 0:00:37] (Ka3) } 53...h5
{ [%eval 253,14] [%emt 0:01:27] (Qf6) } 54.Ka2
{ [%eval -229,13] [%emt 0:00:36] (Ka4) } 54...g5
{ [%eval 262,14] [%emt 0:00:41] (g5) } 55.Qh2+
{ [%eval -233,12] [%emt 0:00:31] (Qg2) } 55...Kg4
{ [%eval 262,11] [%emt 0:00:01] (Kg4) } 56.Qd2
{ [%eval -237, 13] [%emt 0:00:48] (Qd2) } 56...Qa5+
{ [%eval 270,14] [%emt 0:01:25] (Qf4) } 57.Kb3
{ [%eval -237,13] [%emt 0:00:45] (Kb3) } 57...h4
{ [%eval 274,13] [%emt 0:00:25] (Qb6) } 58.Qd4+
{ [%eval -232,12] [%emt 0:00:33] (Qd4) } 58...Kh3
{ [%eval 276,14] [%emt 0:00: 41] (Kf5) } 59.Qd2
{ [%eval -241,13] [%emt 0:00:59] (Qe3) } 59...g4
{ [%eval 312,14] [%emt 0:00:40] (Qb6) } 60.Qf2
{ [%eval -245,12] [%emt 0:00:58] (Qe3) } 60...e5
{ [%eval 309,14] [%emt 0:00:17] (Qf5) } 61.Qe3
{ [%eval -249,14] [%emt 0:00:35] (Qg1) } 61...e4
{ [%eval 348,13] [%emt 0:00:21] (Qc7) } 62.Kc2
{ [%eval -262,14] [%emt 0:00:35] (Qd4) } 62...Qb4
{ [%eval 377,15] [%emt 0:01:20] (Qa6) } 63.b3
{ [%eval -261, 15] [%emt 0:00:44] (Qxg3) } 63...Qd6
{ [%eval 435,16] [%emt 0:00:31] (Qf8) } 64.Nd1
{ [%eval -339,16] [%emt 0:00:43] (Kb2) } 64...Qd3+
{ [%eval 722,16] [%emt 0:00:15] (Qd3) } 65.Qxd3
{ [%eval -711,17] [%emt 0:00:20] (Qxd3) } 65...exd3+
{ [%eval 858,18] [%emt 0:00:03] (exd3) } 0-1

[Event "41st Amateur D7"]
[Site "ChessGUI4"]
[Date "2013.07.09"]
[Round "25.1"]
[White "Shallow 1.0 64-bit"]
[Black "Carballo 0.8"]
[Result "1/2-1/2"]
[BlackElo "2273"]
[ECO "E12"]
[EventDate "2013.??.??"]
[TimeControl "40/1500:40/1500:40/1500"]
[WhiteElo "2200"]

{ i5 Quad } 1.d4 { [%eval 0,1] [%emt 0:00:00] } 1...Nf6
{ [%eval 0,1] [%emt 0:00:00] } 2.Nf3 { [%eval 0,1] [%emt 0:00:00] } 2...e6
{ [%eval 0,1] [%emt 0:00:00] } 3.c4 { [%eval 0,1] [%emt 0:00:00] } 3...b6
{ [%eval 0,1] [%emt 0:00:00] } 4.a3 { [%eval 0,1] [%emt 0:00:00] } 4...Ba6
{ [%eval 0,1] [%emt 0:00:00] } 5.Nbd2 { [%eval 0,1] [%emt 0: 00:00] } 5...d5
{ [%eval 0,1] [%emt 0:00:00] } 6.e3 { [%eval 0,1] [%emt 0:00:00] } 6...c6
{ [%eval 0,1] [%emt 0:00:00] } 7.Be2 { [%eval 0,1] [%emt 0:00:00] } 7...Be7
{ [%eval 0, 1] [%emt 0:00:00] } 8.O-O { [%eval 0,1] [%emt 0:00:00] } 8...O-O
{ [%eval 0,1] [%emt 0:00:00] } 9.b4 { [%eval 10,14] [%emt 0:00:42] } 9...Bb7
{ [%eval -33,12] [%emt 0:00: 37] (c5) } 10.Qc2
{ [%eval 16,14] [%emt 0:00:42] (Bb2) } 10...a5
{ [%eval -10,14] [%emt 0:00:36] (Nbd7) } 11.bxa5
{ [%eval 13,14] [%emt 0:00:42] (bxa5) } 11...Rxa5
{ [%eval -7,13] [%emt 0:00:35] (Rxa5) } 12.Nb3
{ [%eval 10,14] [%emt 0:00:42] (Bb2) } 12...Ra8
{ [%eval 23,13] [%emt 0:00:34] (Ra7) } 13.c5
{ [%eval 7,14] [%emt 0: 00:42] (Bb2) } 13...bxc5
{ [%eval 42,14] [%emt 0:00:33] (bxc5) } 14.dxc5
{ [%eval 1,14] [%emt 0:00:42] (Nxc5) } 14...Nbd7
{ [%eval 102,14] [%emt 0:00:32] (Nbd7) } 15.Nfd2
{ [%eval 0,13] [%emt 0:00:42] (Bb2) } 15...Qc8
{ [%eval 108,14] [%emt 0:00:32] (Ra4) } 16.a4
{ [%eval 1,14] [%emt 0:00:42] (Bb2) } 16...Ba6
{ [%eval 109,14] [%emt 0:00:31] (Ba6) } 17.Bxa6
{ [%eval 0,14] [%emt 0:00:42] (Bxa6) } 17...Qxa6
{ [%eval 101,13] [%emt 0:00:30] (Qxa6) } 18.a5
{ [%eval -2,13] [%emt 0:00:42] (Bb2) } 18...Rfb8
{ [%eval 111,11] [%emt 0:00:29] (e5) } 19.Ba3
{ [%eval -5,12] [%emt 0:00:42] (h3) } 19...Ne5
{ [%eval 112,11] [%emt 0:00:29] (e5) } 20.Qc3
{ [%eval -2,12] [%emt 0:00:42] (Nd4) } 20...Nd3
{ [%eval 117,12] [%emt 0:00:28] (Nfd7) } 21.Qc2
{ [%eval -2,12] [%emt 0:00:42] (Nd4) } 21...e5
{ [%eval 137,13] [%emt 0:00:27] (Rb7) } 22.Ra2
{ [%eval -14, 12] [%emt 0:00:42] (Nf3) } 22...h5
{ [%eval 161,12] [%emt 0:00:26] (Rb7) } 23.Raa1
{ [%eval 11,13] [%emt 0:00:42] (Raa1) } 23...Bd8
{ [%eval 161,11] [%emt 0:00:26] (Rb7) } 24.f3
{ [%eval 6,12] [%emt 0:00:42] (Nf3) } 24...Nd7
{ [%eval 148,11] [%emt 0:00:25] (Bc7) } 25.Rfd1
{ [%eval -25,13] [%emt 0:00:42] (g3) } 25...Qb5
{ [%eval 168,11] [%emt 0:00:24] (Qb5) } 26.Rdb1
{ [%eval -16,14] [%emt 0:00:42] (Rab1) } 26...Qa6
{ [%eval 154,13] [%emt 0:00:24] (Bg5) } 27.Rd1
{ [%eval -16,13] [%emt 0:00:42] (Rd1) } 27...Qb5
{ [%eval 164,12] [%emt 0:00:23] (Qb5) } 28.Rdb1
{ [%eval -15,14] [%emt 0:00:42] (f4) } 28...Bh4
{ [%eval 88,13] [%emt 0:00:23] (Bg5) } 29.Nd4
{ [%eval 0,13] [%emt 0: 00:42] (g3) } 29...Qa6
{ [%eval 124,15] [%emt 0:00:22] (Bf2) } 30.Nxc6
{ [%eval -2,13] [%emt 0:00:42] (Nxc6) } 30...Rc8
{ [%eval 124,14] [%emt 0:00:21] (Rc8) } 31.Nb4
{ [%eval -24,14] [%emt 0:00:42] (Nb4) } 31...Bf2+
{ [%eval 134,16] [%emt 0:00:21] (Bf2) } 32.Kh1
{ [%eval -27,15] [%emt 0:00:42] (Kh1) } 32...Nxb4
{ [%eval 136,15] [%emt 0:00: 20] (Nxb4) } 33.Bxb4
{ [%eval -31,14] [%emt 0:00:42] (Bxb4) } 33...Bxe3
{ [%eval 127, 14] [%emt 0:00:20] (Bxe3) } 34.Qf5
{ [%eval -33,13] [%emt 0:00:42] (Qf5) } 34...Rc7
{ [%eval 130,13] [%emt 0:00:19] (Qe6) } 35.Qxh5
{ [%eval -23,12] [%emt 0:00:42] (Qxh5) } 35...Bd4
{ [%eval 138,12] [%emt 0:00:19] (Rb7) } 36.Ra3
{ [%eval -36,12] [%emt 0:00:42] (Ra2) } 36...Nxc5
{ [%eval 149,12] [%emt 0:00:18] (Bxc5) } 37.Bxc5
{ [%eval -47,12] [%emt 0:00:42] (Bxc5) } 37...Bxc5
{ [%eval 118,13] [%emt 0:00:18] (Rxc5) } 38.Ra2
{ [%eval -85,12] [%emt 0:00:42] (Ra4) } 38...Qe2
{ [%eval 138,12] [%emt 0:00:17] (Qe2) } 39.h3
{ [%eval -112,11] [%emt 0:00:42] (Qf5) } 39...Bd4
{ [%eval 154,11] [%emt 0:00:17] (Bd4) } 40.Qh4
{ [%eval -130,12] [%emt 0:00:42] (Qf5) } 40...Bc3
{ [%eval 166,13] [%emt 0:00:17] (Bc3) } 41.Rc1
{ [%eval -124,12] [%emt 0:00:37] (Rc1) } 41...e4
{ [%eval 169,13] [%emt 0:00:54] (e4) } 42.Re1
{ [%eval -104,12] [%emt 0:00:37] (Re1) } 42...Qd3
{ [%eval 197,15] [%emt 0:00:52] (Qd3) } 43.Qf4
{ [%eval -108,12] [%emt 0:00:37] (Qf4) } 43...Rxa5
{ [%eval 197,15] [%emt 0:00:51] (exf3) } 44.Qxc7
{ [%eval 0,12] [%emt 0:00:37] (Qxc7) } 44...Rxa2
{ [%eval 199,17] [%emt 0:00:50] (Rxa2) } 45.Qd8+
{ [%eval 0,12] [%emt 0:00:37] (Qd8) } 45...Kh7
{ [%eval 198,18] [%emt 0:00:48] (Kh7) } 46.Qh4+
{ [%eval 0,13] [%emt 0:00:37] (Qh4) } 46...Kg6
{ [%eval 198,17] [%emt 0:00:47] (Kg6) } 47.Qg3+
{ [%eval 0,13] [%emt 0:00:37] (Qg4) } 47...Kh5
{ [%eval -90,19] [%emt 0:00:46] (Kh7) } 48.Qg4+
{ [%eval 0, 12] [%emt 0:00:37] (Qg4) } 48...Kh6
{ [%eval 208,17] [%emt 0:00:45] (Kh6) } 49.Qh4+
{ [%eval 0,12] [%emt 0:00:37] (Qh4) } 49...Kg6
{ [%eval 197,17] [%emt 0:00:44] (Kg6) } 50.Qg3+
{ [%eval 0,13] [%emt 0:00:37] (Qg4) } 50...Kh7
{ [%eval -90,19] [%emt 0:00:43] (Kh7) } 51.Qh4+
{ [%eval 0,17] [%emt 0:00:37] (Qh4) } 51...Kg8
{ [%eval -90,20] [%emt 0:00:42] (Kg6) } 52.Qd8+
{ [%eval 0,14] [%emt 0:00:37] (Qd8) } 52...Kh7
{ [%eval -90, 18] [%emt 0:00:40] (Kh7) } 53.Qh4+
{ [%eval 0,18] [%emt 0:00:37] (Qh4) } 1/2-1/2

[Event "41st Amateur D7"]
[Site "ChessGUI4"]
[Date "2013.07.09"]
[Round "25.2"]
[White "MadChess 1.2"]
[Black "ChessKiss 1.7 64-bit"]
[Result "1-0"]
[BlackElo "2214"]
[ECO "B67"]
[EventDate "2013.??.??"]
[TimeControl "40/1500:40/1500:40/1500"]
[WhiteElo "2200"]

{ i5 Quad } 1.e4 { [%eval 0,1] [%emt 0:00:00] } 1...c5
{ [%eval 0,1] [%emt 0:00:00] } 2.Nf3 { [%eval 0,1] [%emt 0:00:00] } 2...Nc6
{ [%eval 0,1] [%emt 0:00:00] } 3.d4 { [%eval 0,1] [%emt 0:00:00] } 3...cxd4
{ [%eval 0,1] [%emt 0:00:00] } 4.Nxd4 { [%eval 0,1] [%emt 0:00:00] } 4...Nf6
{ [%eval 0,1] [%emt 0:00:00] } 5.Nc3 { [%eval 0,1] [%emt 0:00:00] } 5...d6
{ [%eval 0,1] [%emt 0:00:00] } 6.Bg5 { [%eval 0,1] [%emt 0:00: 00] } 6...e6
{ [%eval 0,1] [%emt 0:00:00] } 7.Qd2 { [%eval 0,1] [%emt 0:00:00] } 7...a6
{ [%eval 0,1] [%emt 0:00:00] } 8.O-O-O { [%eval 0,1] [%emt 0:00:00] } 8...Bd7
{ [%eval 0,1] [%emt 0:00:00] } 9.f4 { [%eval 43,11] [%emt 0:00:54] } 9...h6
{ [%eval -32,12] [%emt 0:00:43] (h6) } 10.Bxf6
{ [%eval -3,12] [%emt 0:00:43] (Bh4) } 10...Qxf6
{ [%eval -9,13] [%emt 0:00:42] (Qxf6) } 11.Nf3
{ [%eval -2,12] [%emt 0:02:55] (Nf3) } 11...Qd8
{ [%eval -3,12] [%emt 0:00:41] (Qd8) } 12.Qf2
{ [%eval 13,9] [%emt 0: 00:22] (Kb1) } 12...b5
{ [%eval 10,12] [%emt 0:01:00] (Qc7) } 13.Qg3
{ [%eval 14,9] [%emt 0:00:22] (g4) } 13...g5
{ [%eval 13,12] [%emt 0:00:37] (b4) } 14.a3
{ [%eval 19, 11] [%emt 0:01:20] (f5) } 14...gxf4
{ [%eval 25,11] [%emt 0:00:36] (Be7) } 15.Qxf4
{ [%eval 9,11] [%emt 0:00:25] (Qxf4) } 15...Qb6
{ [%eval 20,11] [%emt 0:00:35] (Rg8) } 16.Kb1
{ [%eval 0,10] [%emt 0:01:20] (Kb1) } 16...Rb8
{ [%eval 34,11] [%emt 0:00:33] (Be7) } 17.e5
{ [%eval 3,10] [%emt 0:01:05] (Na2) } 17...d5
{ [%eval 62,11] [%emt 0:00: 34] (d5) } 18.Be2
{ [%eval -15,9] [%emt 0:00:30] (Na2) } 18...b4
{ [%eval 124,12] [%emt 0:00:32] (b4) } 19.axb4
{ [%eval -123,10] [%emt 0:00:31] (axb4) } 19...Nxb4
{ [%eval 123,11] [%emt 0:00:31] (Bxb4) } 20.Qc1
{ [%eval -105,10] [%emt 0:00:31] (Qc1) } 20...Bc5
{ [%eval 143,12] [%emt 0:00:35] (Bc5) } 21.b3
{ [%eval -131,11] [%emt 0:00:23] (Ka1) } 21...Be3
{ [%eval 165,12] [%emt 0:00:30] (Be3) } 22.Qb2
{ [%eval -131, 11] [%emt 0:00:36] (Qb2) } 22...Rc8
{ [%eval 165,11] [%emt 0:00:28] (O-O) } 23.Bd3
{ [%eval -98,10] [%emt 0:00:34] (Ne1) } 23...O-O
{ [%eval 163,12] [%emt 0:00:26] (Rg8) } 24.Rhe1
{ [%eval -108,10] [%emt 0:00:23] (Ka1) } 24...Ra8
{ [%eval 171,11] [%emt 0:00: 21] (a5) } 25.Ne2
{ [%eval -32,9] [%emt 0:00:25] (Ne2) } 25...Nxd3
{ [%eval 158,12] [%emt 0:00:27] (Bf2) } 26.cxd3
{ [%eval -64,12] [%emt 0:00:43] (cxd3) } 26...Bc5
{ [%eval 177,12] [%emt 0:00:26] (Bc5) } 27.Rf1
{ [%eval -55,11] [%emt 0:00:20] (d4) } 27...Rfb8
{ [%eval 193,12] [%emt 0:00:25] (Rfc8) } 28.Nfd4
{ [%eval -49,11] [%emt 0:00:22] (Nd2) } 28...a5
{ [%eval 246,12] [%emt 0:00:24] (Ba4) } 29.Rf4
{ [%eval -10,11] [%emt 0:00:31] (Rf3) } 29...a4
{ [%eval 289,11] [%emt 0:00:24] (h5) } 30.Rg4+
{ [%eval -67,11] [%emt 0:00:38] (Rg4) } 30...Kh7
{ [%eval 289,11] [%emt 0:00: 22] (Kh7) } 31.Rf1
{ [%eval -13,12] [%emt 0:01:48] (Rf1) } 31...Be8
{ [%eval 227,10] [%emt 0:00:22] (Be8) } 32.Rf6
{ [%eval -13,10] [%emt 0:00:35] (Rf6) } 32...Bf8
{ [%eval 222,10] [%emt 0:00:21] (Qxb3) } 33.Qd2
{ [%eval -4,11] [%emt 0:00:54] (Rh4) } 33...Qb4
{ [%eval 238,10] [%emt 0:00:20] (Qb4) } 34.Qf4
{ [%eval -52,11] [%emt 0:00:24] (Qf4) } 34...Ra7
{ [%eval 165,9] [%emt 0:00:20] (Rb7) } 35.Rh4
{ [%eval 322, 11] [%emt 0:00:50] (Rh4) } 35...Qe1+
{ [%eval -185,11] [%emt 0:00:19] (Qe1) } 36.Nc1
{ [%eval 319,13] [%emt 0:00:42] (Nc1) } 36...Qxh4
{ [%eval -190,11] [%emt 0:00:19] (Qxh4) } 37.Qxh4
{ [%eval 311,13] [%emt 0:01:20] (Qxh4) } 37...Bg7
{ [%eval -193,11] [%emt 0:00:18] (axb3) } 38.Qg3
{ [%eval 313,12] [%emt 0:00:27] (g4) } 38...axb3
{ [%eval -234,12] [%emt 0:00:18] (axb3) } 39.Rf2
{ [%eval 327,11] [%emt 0:00:21] (Rf1) } 39...Ba4
{ [%eval -191,12] [%emt 0:00:18] (Ba4) } 40.Qe3
{ [%eval 332,11] [%emt 0:00:19] (Kb2) } 40...Rab7
{ [%eval -214,10] [%emt 0:00:17] (Rab7) } 41.Kb2
{ [%eval 332,12] [%emt 0:01:57] (Kb2) } 41...Bf8
{ [%eval -277,12] [%emt 0:00:59] (Rc8) } 42.Nce2
{ [%eval 339,11] [%emt 0:00:37] (Rf1) } 42...Ra8
{ [%eval -267,12] [%emt 0:00: 57] (Ra8) } 43.Rf6
{ [%eval 342,12] [%emt 0:00:47] (Rf6) } 43...Bg7
{ [%eval -274,11] [%emt 0:00:56] (Bg7) } 44.Rf1
{ [%eval 341,12] [%emt 0:00:36] (Rf4) } 44...Bf8
{ [%eval -246,13] [%emt 0:00:54] (Be8) } 45.Ra1
{ [%eval 329,10] [%emt 0:00:23] (Rf6) } 45...Bc5
{ [%eval -314,12] [%emt 0:00:52] (Rb4) } 46.Qf4
{ [%eval 417,12] [%emt 0:00:36] (Qc1) } 46...Bxd4+
{ [%eval -434,12] [%emt 0:00:51] (Rg8) } 47.Nxd4
{ [%eval 505,13] [%emt 0:00:44] (Nxd4) } 47...Rg8
{ [%eval -542,13] [%emt 0:00:50] (Ra5) } 48.g4
{ [%eval 495,13] [%emt 0:00:29] (g3) } 48...Be8
{ [%eval -593,14] [%emt 0:00: 49] (Rb4) } 49.Ra3
{ [%eval 533,13] [%emt 0:00:34] (Ra3) } 49...Rg7
{ [%eval -604,14] [%emt 0:00:47] (Rc7) } 50.Rxb3
{ [%eval 563,15] [%emt 0:00:52] (Nxb3) } 50...Ra7
{ [%eval -605,14] [%emt 0:00:45] (Rc7) } 1-0